bitfinex/quotes_BTCUSD_20251009
["timestamp","ask_amount","ask_price","bid_price","bid_amount"]
[1760004915355,5.046e-05,121940.0,121930.0,0.21578855]
[1760004915736,5.046e-05,121940.0,121930.0,0.4715648]
[1760004919435,5.046e-05,121940.0,121930.0,0.21578855]
[1760004919656,5.046e-05,121940.0,121930.0,0.44706855]
[1760004919835,5.046e-05,121940.0,121930.0,0.7028448]
[1760004920387,5.046e-05,121940.0,121930.0,0.4715648]
[1760004920609,5.046e-05,121940.0,121930.0,0.7028448]
[1760004921397,5.046e-05,121940.0,121930.0,0.44706855]
[1760004921602,5.046e-05,121940.0,121930.0,0.7028448]
[1760004922611,5.046e-05,121940.0,121930.0,0.58483876]
[1760004922810,5.046e-05,121940.0,121930.0,0.81611876]
[1760004923235,5.046e-05,121940.0,121930.0,0.58483876]
[1760004923443,5.046e-05,121940.0,121930.0,0.81611876]
[1760004925575,5.046e-05,121940.0,121930.0,0.56034251]
[1760004925795,5.046e-05,121940.0,121930.0,0.81611876]
[1760004929008,5.046e-05,121940.0,121930.0,0.32906251]
[1760004929215,5.046e-05,121940.0,121930.0,0.81611876]
[1760004929582,5.046e-05,121940.0,121930.0,0.58483876]
[1760004929802,5.046e-05,121940.0,121930.0,0.81611876]
[1760004930144,0.41984179,121940.0,121930.0,0.05176001]
[1760004930325,0.41984179,121940.0,121930.0,0.28304001]
[1760004930527,0.16406554,121940.0,121930.0,0.05176001]
[1760004930746,0.41984179,121940.0,121930.0,0.05176001]
[1760004931275,0.16406554,121940.0,121930.0,0.05176001]
[1760004931481,0.41984179,121940.0,121930.0,0.05176001]
[1760004931688,0.16406554,121940.0,121930.0,0.05176001]
[1760004931911,0.41984179,121940.0,121930.0,0.21578855]
[1760004932136,0.41984179,121940.0,121930.0,0.05176001]
[1760004933827,0.42591179,121940.0,121930.0,0.02732001]
[1760004934045,0.76548484,121940.0,121930.0,1e-08]
[1760004934265,0.76168484,121940.0,121930.0,1e-08]
[1760004934485,1.01759419,121940.0,121930.0,1e-08]
[1760004935213,0.93759739,121940.0,121930.0,1e-08]
[1760004936241,0.94139739,121940.0,121930.0,1e-08]
[1760004937839,0.71011739,121940.0,121930.0,1e-08]
[1760004938046,0.94139739,121940.0,121930.0,1e-08]
[1760004938269,0.71011739,121940.0,121930.0,1e-08]
[1760004938480,0.94139739,121940.0,121930.0,1e-08]
[1760004939581,1.02451945,121940.0,121930.0,1e-08]
[1760004940002,1.05669202,121940.0,121930.0,1e-08]
[1760004940172,1.28797202,121940.0,121930.0,1e-08]
[1760004940385,1.03219577,121940.0,121930.0,1e-08]
[1760004940592,1.11747577,121940.0,121930.0,1e-08]
[1760004940993,1.19747257,121940.0,121930.0,1e-08]
[1760004941198,1.19947257,121940.0,121930.0,1e-08]
[1760004941837,1.20047257,121940.0,121930.0,1e-08]
[1760004942858,0.88391257,121940.0,121930.0,1e-08]
[1760004942999,1.12051577,121940.0,121930.0,1e-08]
[1760004943200,0.80391577,121940.0,121930.0,1e-08]
[1760004943405,1.12051577,121940.0,121930.0,1e-08]
[1760004943782,0.80391577,121940.0,121930.0,1e-08]
[1760004944077,1.12051577,121940.0,121930.0,1e-08]
[1760004944291,0.79623945,121940.0,121930.0,1e-08]
[1760004944490,1.11283945,121940.0,121930.0,1e-08]
[1760004946888,0.60128695,121940.0,121930.0,1e-08]
[1760004947048,1.11283945,121940.0,121930.0,1e-08]
[1760004947491,0.60128695,121940.0,121930.0,1e-08]
[1760004947691,0.79623945,121940.0,121930.0,1e-08]
[1760004947885,1.10903945,121940.0,121930.0,0.01629001]
[1760004948130,1.11283945,121940.0,121930.0,1e-08]
[1760004948622,0.79623945,121940.0,121930.0,1e-08]
[1760004949005,1.10903945,121940.0,121930.0,1e-08]
[1760004949416,0.79243945,121940.0,121930.0,1e-08]
[1760004949551,1.10903945,121940.0,121930.0,1e-08]
[1760004949961,0.93861067,121940.0,121930.0,1e-08]
[1760004950458,0.85329067,121940.0,121930.0,1e-08]
[1760004950666,0.99282026,121940.0,121930.0,1e-08]
[1760004950864,0.99662026,121940.0,121930.0,1e-08]
[1760004952836,0.94241067,121940.0,121930.0,1e-08]
[1760004958268,0.71113067,121940.0,121930.0,1e-08]
[1760004958470,0.94245067,121940.0,121930.0,1e-08]
[1760004960250,0.95012667,121940.0,121930.0,1e-08]
[1760004962772,0.96549005,121940.0,121930.0,0.03570001]
[1760004962991,1.38548685,121940.0,121930.0,0.03570001]
[1760004967246,1.49548894,121940.0,121930.0,0.03570001]
[1760004967448,1.72680894,121940.0,121930.0,0.03570001]
[1760004967654,1.72680748,121940.0,121930.0,0.03570001]
[1760004970612,1.49548748,121940.0,121930.0,0.03570001]
[1760004970780,1.72680748,121940.0,121930.0,0.03570001]
[1760004974483,0.64772696,121940.0,121930.0,0.03570001]
[1760004974692,1.64681068,121940.0,121930.0,0.03570001]
[1760004974984,1.69608068,121940.0,121930.0,0.03570001]
[1760004975215,1.64681068,121940.0,121930.0,0.03570001]
[1760004976654,0.98885068,121940.0,121930.0,0.03570001]
[1760004976890,1.06884748,121940.0,121930.0,0.03570001]
[1760004977074,1.72680748,121940.0,121930.0,0.03570001]
[1760004982464,0.72772376,121940.0,121930.0,0.03570001]
[1760004982617,1.06884748,121940.0,121930.0,0.03570001]
[1760004982835,1.64685068,121940.0,121930.0,0.03570001]
[1760004985376,1.64685533,121940.0,121930.0,0.03570001]
[1760004986386,1.64685446,121940.0,121930.0,0.03570001]
[1760004987027,1.41553446,121940.0,121930.0,0.03570001]
[1760004987228,1.64685446,121940.0,121930.0,0.03570001]
[1760004987647,1.72685126,121940.0,121930.0,0.03570001]
[1760004987991,1.49553126,121940.0,121930.0,0.03570001]
[1760004988208,1.72685126,121940.0,121930.0,0.03570001]
[1760004994025,2.17215126,121940.0,121930.0,0.03570001]
[1760004995112,2.22142126,121940.0,121930.0,0.03570001]
[1760004995328,2.17216149,121940.0,121930.0,0.03570001]
[1760004998045,2.16447061,121940.0,121930.0,0.03570001]
[1760004998259,2.1721615,121940.0,121930.0,0.03570001]
[1760004998671,2.16447061,121940.0,121930.0,0.03570001]
[1760004998844,2.17216146,121940.0,121930.0,0.03570001]
[1760004999050,2.14910747,121940.0,121930.0,0.03570001]
[1760005000216,1.69280747,121940.0,121930.0,0.03570001]
[1760005000569,1.70049826,121940.0,121930.0,0.03570001]
[1760005000726,1.69280747,121940.0,121930.0,0.03570001]
[1760005001566,1.71587994,121940.0,121930.0,0.03570001]
[1760005005122,1.76514994,121940.0,121930.0,0.03570001]
[1760005005334,1.71587994,121940.0,121930.0,0.03570001]
[1760005005585,1.71587972,121940.0,121930.0,0.03570001]
[1760005008690,0.97788292,121940.0,121930.0,0.03570001]
[1760005008896,1.63588292,121940.0,121930.0,0.03570001]
[1760005009156,1.40456292,121940.0,121930.0,0.03570001]
[1760005009523,1.63588292,121940.0,121930.0,0.03570001]
[1760005009966,2.06252559,121940.0,121930.0,0.03570001]
[1760005010170,2.14252239,121940.0,121930.0,0.03570001]
[1760005014594,2.14252319,121940.0,121930.0,0.03570001]
[1760005015574,2.14252381,121940.0,121930.0,0.03570001]
[1760005017661,2.14252381,121940.0,121930.0,1e-08]
[1760005017860,2.1852473,121940.0,121930.0,1e-08]
[1760005018067,2.80015291,121940.0,121930.0,1e-08]
[1760005018322,0.1640689,121900.0,121890.0,0.01146]
[1760005018532,0.3954689,121900.0,121890.0,0.02786823]
[1760005018726,0.3954689,121900.0,121890.0,0.04345823]
[1760005018950,0.3954689,121900.0,121890.0,0.06880376]
[1760005019211,0.67602941,121900.0,121890.0,0.06880376]
[1760005019391,0.67702941,121900.0,121890.0,0.06880376]
[1760005019619,0.42110728,121900.0,121890.0,0.06895529]
[1760005020059,0.67702941,121900.0,121890.0,0.05254706]
[1760005020941,0.67902941,121900.0,121890.0,0.05254706]
[1760005021150,0.19170728,121900.0,121890.0,0.05254706]
[1760005021363,0.67902941,121900.0,121890.0,0.05254706]
[1760005021789,0.19170728,121900.0,121890.0,0.48895978]
[1760005021997,0.42310728,121900.0,121890.0,0.47255155]
[1760005022429,0.25907838,121900.0,121890.0,0.47255155]
[1760005023077,0.42314728,121900.0,121890.0,0.47255155]
[1760005024666,0.19170728,121900.0,121890.0,0.47255155]
[1760005027604,0.19170728,121900.0,121890.0,0.21662942]
[1760005027808,0.19170728,121900.0,121890.0,0.47255155]
[1760005028684,0.19170728,121900.0,121890.0,0.21662942]
[1760005029052,0.19170728,121900.0,121890.0,0.47255155]
[1760005030072,0.02763838,121900.0,121890.0,0.47255155]
[1760005034991,0.02763838,121900.0,121890.0,0.21662942]
[1760005035198,0.19170728,121900.0,121890.0,0.21662942]
[1760005035789,0.44762941,121900.0,121890.0,0.21662942]
[1760005036194,0.67902941,121900.0,121890.0,0.21662942]
[1760005036432,0.44762941,121900.0,121890.0,0.21662942]
[1760005036591,0.67902941,121900.0,121890.0,0.21662942]
[1760005041918,0.42310728,121900.0,121890.0,0.21662942]
[1760005042117,0.67902941,121900.0,121890.0,0.21662942]
[1760005047905,0.67902941,121900.0,121890.0,0.05254706]
[1760005048105,0.67902941,121900.0,121890.0,0.02924706]
[1760005048106,0.73065049,121900.0,121890.0,0.02924706]
[1760005048312,0.96197049,121900.0,121890.0,0.00219706]
[1760005049655,1.38509255,121900.0,121890.0,0.00219706]
[1760005049876,1.38889255,121900.0,121890.0,0.00219706]
[1760005053103,1.47041255,121900.0,121890.0,0.00219706]
[1760005053302,1.47421255,121900.0,121890.0,0.00219706]
[1760005056212,0.96236829,121900.0,121890.0,0.00219706]
[1760005056438,1.47421255,121900.0,121890.0,0.00219706]
[1760005061291,1.3641836,121900.0,121890.0,0.00219706]
[1760005061502,1.4495036,121900.0,121890.0,0.00219706]
[1760005061711,1.4495036,121900.0,121890.0,0.03065706]
[1760005061941,1.4434336,121900.0,121890.0,0.05494706]
[1760005062254,1.1266736,121900.0,121890.0,0.05494706]
[1760005062470,1.4434336,121900.0,121890.0,0.05494706]
[1760005062678,1.4495036,121900.0,121890.0,0.03065706]
[1760005063092,1.49704668,121900.0,121890.0,0.03065706]
[1760005064096,1.4495036,121900.0,121890.0,0.03065706]
[1760005065891,1.0181136,121900.0,121890.0,0.05400706]
[1760005066094,1.1034336,121900.0,121890.0,0.05400706]
[1760005067166,0.53075147,121900.0,121890.0,0.05400706]
[1760005067398,0.50626934,121900.0,121890.0,0.05400706]
[1760005067606,0.27482934,121900.0,121890.0,0.21808942]
[1760005067808,0.50626934,121900.0,121890.0,0.21808942]
[1760005068015,0.76219147,121900.0,121890.0,0.21808942]
[1760005068221,0.19170728,121900.0,121890.0,0.21808942]
[1760005068402,0.42314728,121900.0,121890.0,0.21808942]
[1760005070542,0.42314728,121900.0,121890.0,0.05400706]
[1760005071164,0.50314408,121900.0,121890.0,0.05400706]
[1760005071342,0.84439579,121900.0,121890.0,0.05400706]
[1760005071494,0.50921408,121900.0,121890.0,0.03065706]
[1760005075813,0.50314408,121900.0,121890.0,0.05481706]
[1760005077162,0.84439579,121900.0,121890.0,0.05481706]
[1760005078057,0.76439899,121900.0,121890.0,0.05481706]
[1760005079125,0.77046899,121900.0,121890.0,0.05481706]
[1760005079947,0.77046899,121900.0,121890.0,0.03065706]
[1760005080542,0.77046899,121900.0,121890.0,0.05481706]
[1760005080744,0.85359105,121900.0,121890.0,0.01428706]
[1760005080983,0.93358785,121900.0,121890.0,0.01428706]
[1760005081149,0.94896067,121900.0,121890.0,0.01428706]
[1760005081568,0.94896067,121900.0,121890.0,0.03043706]
[1760005081769,0.86896387,121900.0,121890.0,0.03043706]
[1760005082439,0.86896387,121900.0,121890.0,0.00219706]
[1760005082763,0.87276387,121900.0,121890.0,0.00219706]
[1760005086722,0.64132387,121900.0,121890.0,0.00219706]
[1760005086892,0.87268387,121900.0,121890.0,0.00219706]
[1760005087092,0.95268067,121900.0,121890.0,0.00219706]
[1760005087874,1.29268067,121900.0,121890.0,0.00219706]
[1760005088070,1.30036822,121900.0,121890.0,0.00219706]
[1760005092219,1.74566822,121900.0,121890.0,0.00219706]
[1760005093314,1.74566934,121900.0,121890.0,0.00219706]
[1760005094149,1.30036934,121900.0,121890.0,0.00219706]
[1760005094352,1.30044934,121900.0,121890.0,0.00219706]
[1760005095326,1.41026105,121900.0,121890.0,0.00219706]
[1760005095533,1.66670104,121900.0,121890.0,1e-08]
[1760005095949,1.46341294,121900.0,121890.0,1e-08]
[1760005096162,1.70109764,121900.0,121890.0,1e-08]
[1760005096375,1.46869764,121900.0,121890.0,1e-08]
[1760005096607,1.87747697,121900.0,121890.0,1e-08]
[1760005096839,1.999642,121900.0,121890.0,1e-08]
[1760005097472,1.89764201,121900.0,121890.0,1e-08]
[1760005097672,1.997642,121900.0,121890.0,1e-08]
[1760005097882,1.89964201,121900.0,121890.0,1e-08]
[1760005098088,1.97551696,121900.0,121890.0,1e-08]
[1760005098288,1.97751696,121900.0,121890.0,1e-08]
[1760005098934,1.88912696,121900.0,121890.0,1e-08]
[1760005099207,1.89212696,121900.0,121890.0,1e-08]
[1760005099375,1.89012696,121900.0,121890.0,1e-08]
[1760005099535,1.912252,121900.0,121890.0,1e-08]
[1760005099746,1.81225201,121900.0,121890.0,1e-08]
[1760005099946,1.99806858,121900.0,121890.0,1e-08]
[1760005100148,2.58057201,121900.0,121890.0,1e-08]
[1760005100382,2.680572,121900.0,121890.0,1e-08]
[1760005101927,2.450932,121900.0,121890.0,1e-08]
[1760005102123,2.682532,121900.0,121890.0,1e-08]
[1760005102558,2.68250448,121900.0,121890.0,1e-08]
[1760005102922,2.25574448,121900.0,121890.0,1e-08]
[1760005103127,2.68258448,121900.0,121890.0,1e-08]
[1760005103729,2.64275891,121900.0,121890.0,1e-08]
[1760005103936,2.68246009,121900.0,121890.0,1e-08]
[1760005104177,2.45086009,121900.0,121890.0,1e-08]
[1760005104577,2.67750009,121900.0,121890.0,1e-08]
[1760005104762,2.4753479,121900.0,121890.0,1e-08]
[1760005104965,2.68997169,121900.0,121890.0,1e-08]
[1760005105188,0.50413623,121850.0,121840.0,0.06619503]
[1760005105396,2.01729674,121850.0,121840.0,0.06634657]
[1760005105614,1.36484674,121850.0,121840.0,0.06634657]
[1760005105809,1.68591503,121850.0,121840.0,0.06890496]
[1760005106027,2.1148804,121850.0,121840.0,0.06890496]
[1760005106215,1.8832004,121850.0,121840.0,0.00270993]
[1760005106387,2.1148804,121850.0,121840.0,0.00270993]
[1760005106561,1.9016604,121850.0,121840.0,0.00270993]
[1760005106762,2.5602204,121850.0,121840.0,0.00270993]
[1760005107413,2.3285404,121850.0,121840.0,0.00270993]
[1760005107833,2.5612204,121850.0,121840.0,0.00270993]
[1760005107997,2.5632204,121850.0,121840.0,0.00270993]
[1760005109665,2.5708702,121850.0,121840.0,0.00270993]
[1760005110928,1.9123102,121850.0,121840.0,0.00270993]
[1760005111133,2.5709102,121850.0,121840.0,0.00270993]
[1760005111537,2.5679102,121850.0,121840.0,0.00270993]
[1760005111857,2.5719102,121850.0,121840.0,0.00270993]
[1760005115227,2.5895273,121850.0,121840.0,0.00270993]
[1760005115872,2.57415336,121850.0,121840.0,0.00270993]
[1760005116075,2.14414595,121850.0,121840.0,0.00270993]
[1760005116475,0.80304253,121850.0,121840.0,0.00270993]
[1760005116741,1.73309315,121850.0,121840.0,0.00270993]
[1760005117056,1.73309315,121850.0,121840.0,1e-08]
[1760005117057,1.89777675,121850.0,121840.0,1e-08]
[1760005117336,2.12949675,121850.0,121840.0,1e-08]
[1760005117535,1.89777675,121850.0,121840.0,1e-08]
[1760005117744,2.20949355,121850.0,121840.0,1e-08]
[1760005118302,2.23139235,121850.0,121840.0,1e-08]
[1760005118735,2.25343953,121850.0,121840.0,1e-08]
[1760005119363,2.25344035,121850.0,121840.0,1e-08]
[1760005120116,2.02172035,121850.0,121840.0,1e-08]
[1760005120336,2.25344035,121850.0,121840.0,1e-08]
[1760005122291,2.28292816,121850.0,121840.0,1e-08]
[1760005122750,2.28293528,121850.0,121840.0,1e-08]
[1760005123193,2.2608881,121850.0,121840.0,1e-08]
[1760005124303,0.16419013,121810.0,121800.0,0.06659503]
[1760005124532,0.93084649,121810.0,121800.0,0.06710048]
[1760005124750,0.93464649,121810.0,121800.0,0.06710048]
[1760005124961,0.39399958,121810.0,121800.0,0.06710048]
[1760005125175,0.96697129,121810.0,121800.0,0.00090545]
[1760005125614,0.97500035,121810.0,121800.0,0.00090545]
[1760005126190,0.97500035,121810.0,121800.0,0.00190545]
[1760005126394,0.74328035,121810.0,121800.0,0.00190545]
[1760005126578,0.97500035,121810.0,121800.0,0.00190545]
[1760005127428,1.05499715,121810.0,121800.0,0.00190545]
[1760005127848,0.54454864,121810.0,121800.0,0.01777545]
[1760005128073,0.97120035,121810.0,121800.0,0.00190545]
[1760005128202,0.97500035,121810.0,121800.0,0.00190545]
[1760005128408,0.99268194,121810.0,121800.0,0.00190545]
[1760005129227,0.99269134,121810.0,121800.0,0.00190545]
[1760005129446,1.07268814,121810.0,121800.0,0.00190545]
[1760005130053,1.07468814,121810.0,121800.0,0.00295324]
[1760005130462,1.07568814,121810.0,121800.0,0.00295324]
[1760005130804,0.64523643,121810.0,121800.0,0.00295324]
[1760005130982,1.07188814,121810.0,121800.0,0.00295324]
[1760005131595,1.04721187,121810.0,121800.0,0.00295324]
[1760005131797,1.13267277,121810.0,121800.0,0.00295324]
[1760005132049,0.81555277,121810.0,121800.0,0.00295324]
[1760005132337,1.13267277,121810.0,121800.0,0.00295324]
[1760005132754,1.05267597,121810.0,121800.0,0.03038324]
[1760005134209,0.99195359,121810.0,121800.0,0.03038324]
[1760005134435,0.99195359,121810.0,121800.0,0.00295324]
[1760005134846,0.99575359,121810.0,121800.0,0.00295324]
[1760005135194,1.05480594,121810.0,121800.0,0.00295324]
[1760005135608,1.13480274,121810.0,121800.0,0.00295324]
[1760005135844,1.05480594,121810.0,121800.0,0.01915324]
[1760005137196,1.05480594,121810.0,121800.0,0.00295324]
[1760005137412,1.05860594,121810.0,121800.0,0.00295324]
[1760005139391,1.05856594,121810.0,121800.0,0.00295324]
[1760005139579,0.99571359,121810.0,121800.0,0.00295324]
[1760005139779,1.07571039,121810.0,121800.0,0.00295324]
[1760005140590,1.13835172,121810.0,121800.0,0.00295324]
[1760005140802,1.81960343,121810.0,121800.0,0.00295324]
[1760005141030,1.84168162,121810.0,121800.0,0.00295324]
[1760005141243,1.50042991,121810.0,121800.0,0.00295324]
[1760005141454,1.84168162,121810.0,121800.0,0.00295324]
[1760005141669,1.50042991,121810.0,121800.0,0.00295324]
[1760005142079,1.84168162,121810.0,121800.0,0.00295324]
[1760005142325,1.50042991,121810.0,121800.0,0.00295324]
[1760005143416,1.84168162,121810.0,121800.0,0.00295324]
[1760005144070,1.87116943,121810.0,121800.0,0.00295324]
[1760005144286,1.63948943,121810.0,121800.0,0.00295324]
[1760005144547,1.87124943,121810.0,121800.0,0.00295324]
[1760005144767,1.09955311,121810.0,121800.0,0.01915324]
[1760005144984,1.39467492,121810.0,121800.0,0.01915324]
[1760005145398,1.39467492,121810.0,121800.0,0.00295324]
[1760005146318,1.07748445,121810.0,121800.0,0.00295324]
[1760005146519,1.39468445,121810.0,121800.0,0.00295324]
[1760005146885,1.39468445,121810.0,121800.0,0.01915324]
[1760005147601,1.39468445,121810.0,121800.0,0.00295324]
[1760005148014,1.47468125,121810.0,121800.0,0.00295324]
[1760005148638,1.13342954,121810.0,121800.0,0.00295324]
[1760005148843,1.13342954,121810.0,121800.0,0.01915324]
[1760005148844,1.47468125,121810.0,121800.0,0.01915324]
[1760005149005,1.15748125,121810.0,121800.0,0.01915324]
[1760005149208,1.47464125,121810.0,121800.0,0.01915324]
[1760005149408,1.09486283,121810.0,121800.0,0.01915324]
[1760005149675,0.38343367,121810.0,121800.0,0.21820685]
[1760005149881,0.61519367,121810.0,121800.0,0.21820685]
[1760005150322,0.29803367,121810.0,121800.0,0.21820685]
[1760005150527,0.52983367,121810.0,121800.0,0.21820685]
[1760005151192,0.52983367,121810.0,121800.0,0.05400324]
[1760005152491,0.95715218,121810.0,121800.0,0.03069324]
[1760005152716,0.95715218,121810.0,121800.0,0.00295324]
[1760005152717,0.96091218,121810.0,121800.0,0.00295324]
[1760005152930,1.30091218,121810.0,121800.0,0.00295324]
[1760005153137,1.06915218,121810.0,121800.0,0.00295324]
[1760005153351,1.30091218,121810.0,121800.0,0.00295324]
[1760005153612,1.36185002,121810.0,121800.0,0.00295324]
[1760005154054,1.30091218,121810.0,121800.0,0.00295324]
[1760005154474,1.65991835,121810.0,121800.0,0.00295324]
[1760005154677,1.69435787,121810.0,121800.0,0.00295324]
[1760005155970,1.71625667,121810.0,121800.0,1e-08]
[1760005156641,1.7085704,121810.0,121800.0,1e-08]
[1760005156862,1.71525682,121810.0,121800.0,1e-08]
[1760005157067,1.71625682,121810.0,121800.0,1e-08]
[1760005157513,1.71425682,121810.0,121800.0,1e-08]
[1760005157741,0.16420361,121800.0,121790.0,1e-08]
[1760005157969,1.26531285,121800.0,121790.0,1e-08]
[1760005158215,1.61518285,121800.0,121790.0,1e-08]
[1760005158434,1.38326285,121800.0,121790.0,1e-08]
[1760005158648,1.40096725,121800.0,121790.0,1e-08]
[1760005158852,1.40296725,121800.0,121790.0,1e-08]
[1760005159061,1.43311915,121800.0,121790.0,1e-08]
[1760005159270,1.66603915,121800.0,121790.0,1e-08]
[1760005159691,1.69103914,121800.0,121790.0,1e-08]
[1760005159902,1.34978743,121800.0,121790.0,1e-08]
[1760005160125,1.78019634,121800.0,121790.0,1e-08]
[1760005160740,1.77819634,121800.0,121790.0,1e-08]
[1760005160944,1.78019634,121800.0,121790.0,1e-08]
[1760005161586,1.76249194,121800.0,121790.0,1e-08]
[1760005161816,1.78017843,121800.0,121790.0,1e-08]
[1760005162226,1.35209843,121800.0,121790.0,1e-08]
[1760005162439,1.78021843,121800.0,121790.0,1e-08]
[1760005162649,1.78017843,121800.0,121790.0,1e-08]
[1760005163919,1.78025843,121800.0,121790.0,1e-08]
[1760005164429,1.78022527,121800.0,121790.0,1e-08]
[1760005164762,0.8756207,121790.0,121780.0,1e-08]
[1760005164966,1.34023907,121790.0,121780.0,1e-08]
[1760005165171,1.69136078,121790.0,121780.0,1e-08]
[1760005165372,0.53438247,121780.0,121770.0,0.0004]
[1760005165622,1.21376648,121780.0,121770.0,0.0004]
[1760005165802,1.19348458,121780.0,121770.0,0.0004]
[1760005166013,1.27348138,121780.0,121770.0,0.0004]
[1760005166550,1.04148138,121780.0,121770.0,0.0004]
[1760005166767,1.46968138,121780.0,121770.0,0.0004]
[1760005166977,1.70168138,121780.0,121770.0,0.0004]
[1760005167398,1.36042967,121780.0,121770.0,0.0004]
[1760005167612,1.70168138,121780.0,121770.0,0.0004]
[1760005167792,1.71362138,121780.0,121770.0,0.0004]
[1760005167992,1.71562138,121780.0,121770.0,0.0004]
[1760005169946,1.37436967,121780.0,121770.0,0.0004]
[1760005170114,1.71562138,121780.0,121770.0,0.0004]
[1760005170903,1.71562138,121780.0,121770.0,0.0009122]
[1760005171097,1.37562138,121780.0,121770.0,0.0009122]
[1760005172727,1.37566138,121780.0,121770.0,0.0009122]
[1760005173140,1.71566138,121780.0,121770.0,0.0009122]
[1760005173341,1.05642138,121780.0,121770.0,0.0009122]
[1760005173541,1.71566138,121780.0,121770.0,0.0009122]
[1760005175345,1.71564049,121780.0,121770.0,0.0009122]
[1760005175951,1.28840049,121780.0,121770.0,0.0009122]
[1760005176156,1.71564049,121780.0,121770.0,0.0009122]
[1760005176921,0.63515198,121780.0,121770.0,0.0009122]
[1760005177126,1.63560369,121780.0,121770.0,0.0009122]
[1760005177331,1.40364369,121780.0,121770.0,0.0009122]
[1760005177539,0.29135198,121780.0,121770.0,0.0009122]
[1760005177749,0.36912498,121780.0,121770.0,0.0530622]
[1760005177957,0.51205292,121780.0,121770.0,0.0530622]
[1760005178171,0.51209292,121780.0,121770.0,0.0530622]
[1760005178376,0.51209292,121780.0,121770.0,0.21730626]
[1760005178814,0.51209292,121780.0,121770.0,0.0530622]
[1760005179543,0.51209292,121780.0,121770.0,0.233461]
[1760005179779,0.42665292,121780.0,121770.0,0.21730626]
[1760005179967,0.42665292,121780.0,121770.0,0.0530622]
[1760005181238,0.62493669,121780.0,121770.0,0.0009122]
[1760005181634,0.85709669,121780.0,121770.0,0.0009122]
[1760005182023,0.93709349,121780.0,121770.0,0.0009122]
[1760005182263,0.94085349,121780.0,121770.0,0.0009122]
[1760005182873,0.62873669,121780.0,121770.0,0.0009122]
[1760005183080,0.50981498,121780.0,121770.0,0.0530622]
[1760005183288,0.85106669,121780.0,121770.0,0.0530622]
[1760005183693,0.85109389,121780.0,121770.0,0.0530622]
[1760005183895,0.83574434,121780.0,121770.0,0.0530622]
[1760005185586,0.85110005,121780.0,121770.0,0.0530622]
[1760005187195,0.53577799,121780.0,121770.0,0.0530622]
[1760005187391,0.76797799,121780.0,121770.0,0.0530622]
[1760005189767,0.76797665,121780.0,121770.0,0.0530622]
[1760005192921,0.42672494,121780.0,121770.0,0.0530622]
[1760005193358,0.41137057,121780.0,121770.0,0.0530622]
[1760005195505,0.01494,121780.0,121770.0,0.21730626]
[1760005195716,0.003,121780.0,121770.0,0.55855797]
[1760005195957,0.003,121780.0,121770.0,0.21730626]
[1760005196376,0.003,121780.0,121770.0,0.55855797]
[1760005196596,0.42289684,121800.0,121780.0,0.16423057]
[1760005196808,0.42289684,121800.0,121790.0,0.23214879]
[1760005197011,0.39823835,121800.0,121790.0,0.21572709]
[1760005198936,0.40023835,121800.0,121790.0,0.21572709]
[1760005199133,0.40123835,121800.0,121790.0,0.21572709]
[1760005199432,0.39923835,121800.0,121790.0,0.21572709]
[1760005199735,0.40123835,121800.0,121790.0,0.21572709]
[1760005200477,0.40123835,121800.0,121790.0,0.05151]
[1760005200478,0.16907835,121800.0,121790.0,0.05151]
[1760005200954,0.74856006,121800.0,121790.0,0.02803]
[1760005200956,0.74856006,121800.0,121790.0,0.0444517]
[1760005201464,0.74249006,121800.0,121790.0,0.0679317]
[1760005201729,0.74245006,121800.0,121790.0,0.0679317]
[1760005202280,0.40119835,121800.0,121790.0,0.0679317]
[1760005203226,0.16907835,121800.0,121790.0,0.0679317]
[1760005203506,0.40119835,121800.0,121790.0,0.0679317]
[1760005203769,0.40726835,121800.0,121790.0,0.02803]
[1760005204441,0.17514835,121800.0,121790.0,0.02803]
[1760005204692,0.74852006,121800.0,121790.0,0.02803]
[1760005205626,0.17514835,121800.0,121790.0,0.02803]
[1760005205831,0.74848006,121800.0,121790.0,0.02803]
[1760005209920,0.51640006,121800.0,121790.0,0.02803]
[1760005210116,0.74848006,121800.0,121790.0,0.05151]
[1760005210533,0.40722835,121800.0,121790.0,0.02803]
[1760005210737,0.74848006,121800.0,121790.0,0.02803]
[1760005210968,0.74848006,121800.0,121790.0,0.05151]
[1760005211198,0.74848006,121800.0,121790.0,0.02803]
[1760005211403,0.51640006,121800.0,121790.0,0.02803]
[1760005211608,0.51640006,121800.0,121790.0,0.05151]
[1760005211809,0.74848006,121800.0,121790.0,0.05151]
[1760005212231,0.51640006,121800.0,121790.0,0.02803]
[1760005212990,0.74844006,121800.0,121790.0,0.02803]
[1760005213528,0.51640006,121800.0,121790.0,0.02803]
[1760005213779,0.74844006,121800.0,121790.0,0.02803]
[1760005214001,0.40718835,121800.0,121790.0,0.02803]
[1760005214256,0.74844006,121800.0,121790.0,0.02803]
[1760005217481,0.51033006,121800.0,121790.0,0.02803]
[1760005217691,0.76698875,121800.0,121790.0,0.05151]
[1760005217893,0.19373704,121800.0,121790.0,0.05151]
[1760005218098,0.42573704,121800.0,121790.0,0.05151]
[1760005218567,0.40107835,121800.0,121790.0,0.05151]
[1760005218799,0.42573704,121800.0,121790.0,0.05151]
[1760005220987,0.19373704,121800.0,121790.0,0.05151]
[1760005221196,0.42573704,121800.0,121790.0,0.05151]
[1760005222285,0.76698875,121800.0,121790.0,0.05151]
[1760005222974,0.53498875,121800.0,121790.0,0.05151]
[1760005223231,0.76694875,121800.0,121790.0,0.21572709]
[1760005223448,0.42569704,121800.0,121790.0,0.21572709]
[1760005224355,0.26149196,121800.0,121790.0,0.21572709]
[1760005224560,0.40103688,121800.0,121790.0,0.21572709]
[1760005225486,0.41642538,121800.0,121790.0,0.21572709]
[1760005226251,0.40103688,121800.0,121790.0,0.21572709]
[1760005226500,0.16907688,121800.0,121790.0,0.21572709]
[1760005226755,0.40103688,121800.0,121790.0,0.21572709]
[1760005228031,0.16907688,121800.0,121790.0,0.21572709]
[1760005228246,0.40103688,121800.0,121790.0,0.21572709]
[1760005229021,0.41642437,121800.0,121790.0,0.21572709]
[1760005229430,0.40103688,121800.0,121790.0,0.21572709]
[1760005229639,0.00487327,121800.0,121790.0,0.5569788]
[1760005230716,0.00287327,121800.0,121790.0,0.5569788]
[1760005230924,0.00187327,121800.0,121790.0,0.21572709]
[1760005231167,0.00187327,121800.0,121790.0,0.5569788]
[1760005238117,0.00187327,121800.0,121790.0,0.21572709]
[1760005238349,0.00187327,121800.0,121790.0,0.5569788]
[1760005242695,0.00187327,121800.0,121790.0,0.7888588]
[1760005243367,0.00187327,121800.0,121790.0,0.5569788]
[1760005243608,0.00187327,121800.0,121790.0,0.7888588]
[1760005245476,0.00182097,121800.0,121790.0,0.7888588]
[1760005245617,0.00182097,121800.0,121790.0,0.64010086]
[1760005245823,0.00182097,121800.0,121790.0,1.24213276]
[1760005246059,0.00182097,121800.0,121790.0,1.32753276]